bitfinex-derivatives/quotes_SOLF0:USTF0_20241224
["timestamp","ask_amount","ask_price","bid_price","bid_amount"]
[1735033074408,2.5947,192.96,192.91,2.5952]
[1735033075110,2.595,192.94,192.9,58.70857]
[1735033075313,10.8382576,192.94,192.9,58.70857]
[1735033075505,8.2432576,192.94,192.9,58.70857]
[1735033075715,2.5953,192.91,192.9,58.70857]
[1735033077115,2.5952,192.93,192.9,58.70857]
[1735033077311,8.2432576,192.95,192.9,58.70857]
[1735033077613,24.65741836,193.05,192.91,8.2432576]
[1735033077614,8.2432576,192.97,192.91,8.2432576]
[1735033078213,8.2432576,192.97,192.94,2.5949]
[1735033078413,8.2432576,192.97,192.9,58.70857]
[1735033078414,8.2432576,192.99,192.93,8.2432576]
[1735033078615,8.2432576,192.99,192.95,2.5948]
[1735033078908,8.2432576,192.99,192.92,8.2432576]
[1735033079209,10.8375576,192.99,192.94,2.5949]
[1735033080409,2.5943,192.99,192.94,2.5949]
[1735033081217,2.5944,192.98,192.93,2.595]
[1735033081711,12.91335968,193.02,192.89,12.91335968]
[1735033081909,12.91335968,193.02,192.94,2.5949]
[1735033083517,2.5943,192.99,192.94,2.5949]
[1735033084310,2.5944,192.98,192.93,2.5951]
[1735033085518,2.5945,192.97,192.93,2.5951]
[1735033086020,12.91335968,193.02,192.87,4.6982]
[1735033086221,16.05275968,193.05,192.92,12.91335968]
[1735033087419,2.5939,193.02,192.97,2.5944]
[1735033089112,2.594,193.01,192.96,2.5945]
[1735033089818,16.05275968,193.05,192.97,2.5945]
[1735033090016,2.5939,193.02,192.97,2.5945]
[1735033095825,2.5939,193.02,192.98,2.5943]
[1735033099233,12.91335968,193.06,192.92,12.91335968]
[1735033099533,12.91335968,193.06,192.95,12.91335968]
[1735033099728,12.91335968,193.06,192.96,4.6038]
[1735033100134,8.25882448,193.05,193.03,2.5937]
[1735033101531,8.25882448,193.06,193.03,2.5937]
[1735033106939,10.85212448,193.06,193.02,2.5938]
[1735033110749,2.5935,193.05,193.02,2.5938]
[1735033116351,8.25882448,193.06,193.03,2.5936]
[1735033116551,0.61369,193.09,193.0,8.25882448]
[1735033116753,8.87251448,193.09,193.02,8.25882448]
[1735033116953,11.46551448,193.09,193.04,2.5936]
[1735033117152,11.46551448,193.09,193.02,8.25882448]
[1735033118145,8.25882448,193.07,192.96,4.6038]
[1735033118349,8.25882448,193.05,192.96,4.6038]
[1735033118554,8.25882448,193.05,192.98,8.25882448]
[1735033119455,10.85232448,193.05,193.01,2.594]
[1735033119653,0.61369,193.09,193.01,8.25882448]
[1735033119854,8.25882448,193.08,193.01,8.25882448]
[1735033120446,3.20669,193.09,193.03,8.25882448]
[1735033120957,3.20669,193.09,193.05,2.5934]
[1735033121359,0.61369,193.09,193.03,8.25882448]
[1735033122456,0.61369,193.09,193.06,2.5932]
[1735033125157,0.61369,193.09,193.07,2.5931]
[1735033132261,0.61369,193.09,193.08,2.593]
[1735033134167,0.61369,193.09,193.06,2.5932]
[1735033149770,0.61369,193.09,193.07,2.5932]
[1735033149970,0.61369,193.09,193.07,8.25882448]
[1735033151369,0.61369,193.09,193.08,2.593]
[1735033152066,0.61369,193.09,193.07,2.5932]
[1735033152869,0.61369,193.09,193.08,2.593]
[1735033153465,21.51801836,193.18,193.14,2.5922]
[1735033153972,21.51801836,193.22,193.05,81.27759902]
[1735033154170,8.25882448,193.17,193.05,81.27759902]
[1735033154369,8.25882448,193.15,193.08,8.25882448]
[1735033154975,10.85102448,193.15,193.08,8.25882448]
[1735033155170,8.25882448,193.19,193.12,8.25882448]
[1735033156070,8.25882448,193.15,193.05,81.27759902]
[1735033156270,8.25882448,193.15,193.08,8.25882448]
[1735033156875,10.85092448,193.15,193.1,2.5928]
[1735033157172,8.25882448,193.15,193.05,3.1168]
[1735033157379,8.25882448,193.11,193.05,1.6184]
[1735033157679,2.5929,193.1,193.05,4.2117]
[1735033157875,8.25882448,193.11,193.05,1.6184]
[1735033158278,8.25882448,193.11,193.05,9.87722448]
[1735033159183,8.25882448,193.13,193.05,9.87722448]
[1735033159578,2.5925,193.12,193.07,2.5931]
[1735033159778,2.5925,193.12,193.07,8.25882448]
[1735033161480,2.5925,193.12,193.08,2.593]
[1735033162379,12.95632448,193.19,193.11,8.25882448]
[1735033162582,11.35942448,193.19,193.11,8.25882448]
[1735033162781,2.5918,193.18,193.13,2.5924]
[1735033162981,11.35942448,193.19,193.11,8.25882448]
[1735033163381,8.25882448,193.17,193.11,8.25882448]
[1735033163581,2.5921,193.15,193.09,8.25882448]
[1735033164184,2.5921,193.15,193.1,2.5928]
[1735033164185,10.85092448,193.15,193.1,2.5928]
[1735033164381,2.5923,193.14,193.09,8.25882448]
[1735033164790,8.25882448,193.17,193.1,2.5927]
[1735033166285,8.25882448,193.15,193.09,2.5929]
[1735033166585,8.25882448,193.13,193.05,9.87722448]
[1735033166786,2.5928,193.1,193.05,9.87722448]
[1735033166980,8.25882448,193.13,193.05,9.87722448]
[1735033167780,8.25882448,193.13,193.05,12.47062448]
[1735033169382,2.5925,193.12,193.07,2.5932]
[1735033169578,21.51801836,193.2,193.11,8.25882448]
[1735033169783,21.51801836,193.2,193.15,8.25882448]
[1735033170588,24.10951836,193.2,193.15,10.85092448]
[1735033170883,2.5915,193.2,193.15,10.85092448]
[1735033172293,2.5915,193.2,193.15,2.5921]
[1735033180692,2.5913,193.22,193.17,2.5918]
[1735033181894,21.51801836,193.29,193.15,12.88224565]
[1735033182094,21.51801836,193.29,193.18,12.88224565]
[1735033182289,21.51801836,193.29,193.21,12.88224565]
[1735033183397,21.51801836,193.29,193.28,2.5904]
[1735033183594,2.5899,193.32,193.28,2.5904]
[1735033183798,2.5897,193.33,193.28,2.5904]
[1735033186194,1.4649,193.37,193.24,12.88224565]
[1735033186402,2.5895,193.35,193.29,2.5902]
[1735033187000,2.5895,193.35,193.3,2.5901]
[1735033189000,2.5895,193.35,193.22,4.5978]
[1735033189001,12.88224565,193.38,193.28,2.5903]
[1735033189201,12.88224565,193.38,193.24,12.88224565]
[1735033190503,2.5897,193.34,193.29,2.5902]
[1735033191404,2.5894,193.35,193.3,2.59]
[1735033191996,12.88224565,193.38,193.24,12.88224565]
[1735033192704,2.5897,193.34,193.29,2.5901]
[1735033194602,2.5897,193.34,193.3,8.23342548]
[1735033196414,2.5897,193.34,193.3,10.82352548]
[1735033197018,1.5058,193.42,193.3,8.23342548]
[1735033197217,1.5058,193.42,193.32,8.23342548]
[1735033197218,2.589,193.39,193.32,8.23342548]
[1735033197619,2.589,193.39,193.34,2.5895]
[1735033198817,11.41031757,193.4,193.32,8.23342548]
[1735033199018,8.23342548,193.38,193.3,8.23342548]
[1735033199820,2.5893,193.36,193.31,2.5898]
[1735033200516,2.5893,193.36,193.3,8.23342548]
[1735033200517,2.5894,193.35,193.3,8.23342548]
[1735033200722,3.17689209,193.4,193.36,2.5893]
[1735033201021,1.6187,193.45,193.35,8.23342548]
[1735033201022,8.23342548,193.43,193.35,8.23342548]
[1735033201618,8.23342548,193.43,193.35,10.82282548]
[1735033202419,2.5889,193.4,193.35,2.5894]
[1735033202620,8.23342548,193.43,193.35,10.82282548]
[1735033203216,8.23342548,193.41,193.35,10.82282548]
[1735033203419,2.5889,193.39,193.35,10.82282548]
[1735033203628,8.23342548,193.41,193.32,2.5898]
[1735033203818,8.23342548,193.35,193.22,4.5978]
[1735033204229,2.5901,193.31,193.26,2.5905]
[1735033204527,2.5901,193.31,193.27,8.23342548]
[1735033205624,8.23342548,193.35,193.27,8.23342548]
[1735033205819,8.23342548,193.33,193.27,8.23342548]
[1735033206025,8.23342548,193.33,193.25,8.23342548]
[1735033206826,2.5902,193.3,193.25,8.23342548]
[1735033207426,2.5902,193.3,193.25,10.82412548]
[1735033207628,2.5902,193.3,193.27,8.23342548]
[1735033208725,8.23342548,193.36,193.22,4.5978]
[1735033208928,8.23342548,193.36,193.29,8.23342548]
[1735033209319,2.5897,193.34,193.29,8.23342548]
[1735033209818,2.5897,193.34,193.29,10.82362548]
[1735033210021,8.23342548,193.36,193.29,8.23342548]
[1735033210218,2.5894,193.35,193.29,8.23342548]
[1735033210918,9.72692548,193.38,193.28,8.23342548]
[1735033210919,8.23342548,193.36,193.28,8.23342548]
[1735033211718,2.5898,193.33,193.28,10.82362548]
[1735033211927,2.5898,193.33,193.28,8.23342548]
[1735033213329,9.72692548,193.38,193.3,8.23342548]
[1735033214329,2.5895,193.35,193.3,10.82352548]
[1735033215231,2.5897,193.34,193.28,2.5903]
[1735033215421,9.72692548,193.38,193.29,8.23342548]
[1735033216028,2.5896,193.35,193.3,2.5901]
[1735033217228,8.23342548,193.36,193.3,2.5901]
[1735033217426,2.5896,193.34,193.3,2.5901]
[1735033218536,8.23342548,193.36,193.29,8.23342548]
[1735033218727,10.82282548,193.36,193.31,2.5899]
[1735033220223,8.23342548,193.36,193.31,2.5899]
[1735033220424,2.5894,193.35,193.31,2.5899]
[1735033221235,2.5897,193.34,193.26,2.5906]
[1735033221432,2.5897,193.34,193.27,8.23342548]
[1735033222134,2.5897,193.33,193.28,2.5902]
[1735033222933,2.5897,193.33,193.29,2.5902]
[1735033226135,2.5899,193.32,193.28,2.5904]
[1735033232240,2.5899,193.32,193.29,2.5902]
[1735033233439,2.5897,193.33,193.29,2.5902]
[1735033235442,2.5898,193.32,193.28,2.5903]
[1735033238943,21.51801836,193.37,193.27,8.23342548]
[1735033239145,8.23342548,193.34,193.27,8.23342548]
[1735033239743,10.82302548,193.34,193.29,2.5901]
[1735033240545,10.82282548,193.36,193.27,8.23342548]
[1735033240846,10.82282548,193.36,193.29,8.23342548]
[1735033241043,8.23342548,193.36,193.29,8.23342548]
[1735033241347,2.5896,193.35,193.31,2.5899]
[1735033241549,8.23342548,193.36,193.31,2.5899]
[1735033242548,2.5896,193.34,193.3,2.5901]
[1735033243349,10.82282548,193.36,193.31,2.5899]
[1735033243646,21.51801836,193.39,193.35,8.23342548]
[1735033244753,21.51801836,193.39,193.36,2.5893]
[1735033244947,21.51801836,193.39,193.35,8.23342548]
[1735033245249,8.23342548,193.43,193.35,8.23342548]
[1735033246647,21.51801836,193.46,193.37,8.23342548]
[1735033246857,8.23342548,193.44,193.24,57.25191878]
[1735033247048,8.23342548,193.44,193.37,8.23342548]
[1735033247549,2.5882,193.45,193.39,2.5889]
[1735033247754,2.5882,193.45,193.37,8.23342548]
[1735033248255,8.23342548,193.44,193.39,2.5889]
[1735033248756,2.5888,193.4,193.24,57.25191878]
[1735033248952,8.23342548,193.4,193.24,57.25191878]
[1735033249157,8.23342548,193.4,193.33,8.23342548]
[1735033249557,10.82222548,193.4,193.34,2.5894]
[1735033250353,10.82222548,193.4,193.35,2.5894]
[1735033250855,8.23342548,193.43,193.35,8.23342548]
[1735033251053,8.23342548,193.41,193.35,8.23342548]
[1735033251556,10.82212548,193.41,193.35,10.82272548]
[1735033251855,10.82212548,193.41,193.35,8.23342548]
[1735033252858,8.23342548,193.43,193.35,8.23342548]
[1735033253058,10.82182548,193.43,193.35,8.23342548]
[1735033253752,8.23342548,193.43,193.34,4.5829]
[1735033253953,10.82192548,193.43,193.37,2.5891]
[1735033256657,8.23342548,193.43,193.37,2.5891]
[1735033256858,2.5886,193.42,193.37,2.5891]
[1735033257262,2.5886,193.41,193.37,2.5891]
[1735033257864,10.82202548,193.41,193.37,2.5891]
[1735033259365,2.5888,193.4,193.35,10.82282548]
[1735033259567,8.23342548,193.41,193.35,10.82282548]
[1735033260067,8.23342548,193.41,193.34,4.5829]
[1735033260365,8.23342548,193.41,193.34,12.81632548]
[1735033260870,2.5895,193.35,193.3,2.59]
[1735033261462,10.82292548,193.35,193.3,2.59]
[1735033261863,2.5896,193.34,193.29,10.82362548]
[1735033262069,8.23342548,193.35,193.29,8.23342548]
[1735033262267,8.23342548,193.35,193.27,8.23342548]
[1735033262663,8.23342548,193.35,193.26,8.23342548]
[1735033263271,2.5899,193.32,193.27,2.5904]
[1735033263463,2.5899,193.32,193.28,8.23342548]
[1735033263672,8.23342548,193.35,193.28,8.23342548]
[1735033264868,2.5897,193.34,193.28,10.82362548]
[1735033267368,2.5897,193.33,193.28,10.82362548]
[1735033270271,26.02021836,193.43,193.3,8.23342548]
[1735033270469,8.23342548,193.4,193.34,8.23342548]
[1735033270976,10.82232548,193.4,193.35,2.5893]
[1735033271162,10.82232548,193.4,193.34,8.23342548]
[1735033271163,8.23342548,193.4,193.34,8.23342548]
[1735033271472,8.23342548,193.4,193.36,2.5892]
[1735033271673,2.5886,193.41,193.36,2.5892]
[1735033272270,51.57227484,194.79,193.22,61.87651878]
[1735033272271,54.50953193,193.55,193.4,8.23342548]
[1735033272468,343.52519279,193.56,193.53,8.23342548]
[1735033272673,343.52519279,193.56,193.55,8.23342548]
[1735033273570,81.28584186,193.69,193.55,8.23342548]
[1735033273571,8.23342548,193.69,193.55,8.23342548]
[1735033273772,8.23342548,193.69,193.29,88.40191878]
[1735033273966,8.23342548,193.67,193.58,8.23342548]
[1735033274170,15.58,193.78,193.55,12.82322705]
[1735033274373,12.82322705,193.71,193.62,57.25191878]
[1735033275477,2.5852,193.67,193.58,57.25191878]
[1735033275972,2.5852,193.67,193.6,57.25191878]
[1735033276474,2.5852,193.67,193.61,57.25191878]
[1735033276678,12.82322705,193.68,193.61,57.25191878]
[1735033276874,2.5854,193.65,193.63,57.25191878]
[1735033277171,12.82322705,193.65,193.63,37.79751878]
[1735033277377,12.82322705,193.68,193.63,37.79751878]
[1735033277878,12.82322705,193.68,193.54,12.82322705]
[1735033278178,12.82322705,193.68,193.55,62.55947232]
[1735033278377,12.82322705,193.68,193.56,8.89136924]
[1735033278577,12.82322705,193.68,193.57,4.28439046]
[1735033278779,12.82322705,193.68,193.58,4.28439046]
[1735033278980,12.82322705,193.68,193.56,55.28300308]
[1735033279176,2.5852,193.67,193.59,24.05344123]
[1735033279376,2.5852,193.67,193.59,21.46724123]
[1735033279573,2.5852,193.67,193.56,1.6149]
[1735033279574,2.5852,193.67,193.6,21.46724123]
[1735033280281,2.5852,193.67,193.61,21.46724123]
[1735033280683,2.5852,193.67,193.62,21.46724123]
[1735033280982,2.5852,193.67,193.63,21.46724123]
[1735033281678,2.5852,193.67,193.6,2.5861]
[1735033282276,2.5852,193.67,193.61,20.19549884]
[1735033282881,2.5852,193.67,193.6,2.5861]
[1735033284079,2.5846,193.72,193.64,2.5855]
[1735033284282,12.82322705,193.71,193.64,2.5855]
[1735033284583,12.82322705,193.71,193.59,4.26371106]
[1735033284779,12.82322705,193.71,193.57,12.82322705]
[1735033284981,2.5848,193.7,193.63,2.5857]
[1735033285181,12.82322705,193.71,193.57,12.82322705]
[1735033285483,15.40792705,193.71,193.58,8.84001641]
[1735033285679,15.40792705,193.71,193.59,4.25962333]
[1735033285881,12.82322705,193.71,193.57,12.82322705]
[1735033286081,12.82322705,193.71,193.58,8.84047702]
[1735033286381,12.82322705,193.71,193.59,4.2599363]
[1735033286581,12.82322705,193.71,193.6,4.2599363]
[1735033286785,2.5848,193.7,193.58,4.57830976]
[1735033286984,2.5848,193.7,193.59,4.25774803]
[1735033287180,2.5848,193.7,193.6,4.25774803]
[1735033287380,2.5848,193.7,193.61,1.5467]
[1735033288483,2.5848,193.7,193.63,2.5857]
[1735033288885,2.5848,193.7,193.61,1.5467]
[1735033289085,2.5848,193.7,193.64,2.5855]
[1735033289682,139.58,193.96,193.67,12.82322705]
[1735033289985,12.82322705,193.82,193.68,7.32200126]
[1735033290186,2.5834,193.8,193.68,3.0767]
[1735033290585,2.5834,193.8,193.69,4.24048607]
[1735033290785,2.5834,193.8,193.68,3.0767]
[1735033290786,12.82322705,193.79,193.68,3.0767]
[1735033291487,12.82322705,193.79,193.74,2.5842]
[1735033292190,15.40652705,193.82,193.75,2.584]
[1735033292386,12.82322705,193.82,193.75,2.584]
[1735033292987,12.82322705,193.82,193.76,2.5839]
[1735033294488,15.40642705,193.82,193.76,2.5839]
[1735033294689,12.82322705,193.82,193.68,3.0767]
[1735033295186,2.5836,193.79,193.73,2.5842]
[1735033295390,1.5192,193.85,193.7,12.82322705]
[1735033295590,12.82322705,194.0,193.73,12.82322705]
[1735033295591,15.58,193.98,193.73,12.82322705]
[1735033295788,12.82322705,193.87,193.74,4.2266991]
[1735033295995,2.5828,193.85,193.79,2.5835]
[1735033296489,2.5828,193.85,193.73,12.82322705]
[1735033296691,2.9916,193.94,193.76,12.82322705]
[1735033296896,12.82322705,193.89,193.77,1.4799]
[1735033297289,2.5824,193.88,193.78,1.5108]
[1735033297689,2.5824,193.88,193.81,2.5832]
[1735033297993,12.82322705,193.89,193.81,2.5832]
[1735033298187,12.82322705,193.86,193.78,1.5108]
[1735033298394,12.82322705,193.86,193.79,2.5835]
[1735033298591,2.5828,193.85,193.77,1.4799]
[1735033298797,12.82322705,193.86,193.77,1.4799]
[1735033299492,2.9916,193.94,193.77,1.4799]
[1735033299996,2.5822,193.89,193.77,18.51204333]
[1735033300190,12.82322705,193.91,193.77,14.30312705]
[1735033300495,15.40532705,193.91,193.85,2.5827]
[1735033300795,12.82322705,194.0,193.78,4.20002952]
[1735033300796,12.82322705,193.92,193.78,4.20002952]
[1735033301492,12.82322705,193.92,193.79,4.20002952]
[1735033301688,12.82322705,193.95,193.8,17.02325657]
[1735033301892,12.82322705,193.95,193.83,12.82322705]
[1735033302089,12.82322705,193.95,193.84,1.5777]
[1735033303395,15.40512705,193.92,193.86,2.5825]
[1735033304695,2.582,193.91,193.86,2.5825]
[1735033304896,12.82322705,193.92,193.84,4.1605]
[1735033305492,2.5814,193.96,193.9,2.5821]
[1735033305893,12.82322705,193.98,193.84,1.5777]
[1735033307095,2.5813,193.96,193.9,2.582]
[1735033307291,12.82322705,193.98,193.86,12.82322705]
[1735033307497,12.82322705,193.98,193.87,1.4804]
[1735033308398,2.5812,193.97,193.92,2.5818]
[1735033309693,2.5812,193.97,193.91,2.5819]
[1735033310500,2.5812,193.97,193.92,2.5818]
[1735033311999,2.5814,193.95,193.9,2.582]
[1735033313100,12.82322705,194.0,193.86,12.82322705]
[1735033313294,2.5812,193.97,193.93,2.5817]
[1735033314099,12.82322705,194.0,193.87,11.25613567]
[1735033314302,12.82322705,194.0,193.88,4.20755291]
[1735033314600,12.82322705,194.0,193.89,4.20755291]
[1735033314801,2.5815,193.95,193.9,4.21361232]
[1735033314999,2.5815,193.95,193.89,2.5821]
[1735033315200,2.5815,193.95,193.9,4.21347456]
[1735033315399,2.5815,193.95,193.91,4.21347456]
[1735033315599,2.5808,194.0,193.93,2.5816]
[1735033315799,15.97652705,194.04,193.94,4.21916682]
[1735033315999,15.97652705,194.04,193.95,4.21916682]
[1735033316201,2.5814,193.96,193.91,2.5819]
[1735033316711,2.5814,193.96,193.92,4.22569985]
[1735033317006,2.5815,193.95,193.93,4.22569985]
[1735033317204,2.5815,193.95,193.94,4.23290622]
[1735033317603,2.5814,193.96,193.91,2.5818]
[1735033317804,12.82322705,194.01,193.92,4.23255943]
[1735033318004,12.82322705,194.01,193.93,4.23255943]
[1735033318205,2.5815,193.95,193.89,2.5821]
[1735033318402,2.5815,193.95,193.9,15.55667738]
[1735033318603,12.82322705,194.01,193.91,4.23302093]
[1735033318802,2.5816,193.94,193.92,4.23302093]
[1735033319006,2.5816,193.94,193.93,4.23302093]
[1735033319803,2.5816,193.94,193.93,4.23286551]
[1735033320206,2.5817,193.93,193.85,3.0482]
[1735033320403,3.1533,194.04,193.86,28.38654315]
[1735033320404,15.97652705,194.04,193.86,28.38654315]
[1735033320707,12.82322705,194.01,193.87,15.5633161]
[1735033321006,12.82322705,194.01,193.88,15.5633161]
[1735033321208,12.82322705,194.01,193.89,15.5633161]
[1735033321408,2.5815,193.95,193.9,18.1454161]
[1735033321602,2.5815,193.95,193.91,15.5633161]
[1735033321803,2.5815,193.95,193.92,8.78760946]
[1735033322002,2.5815,193.95,193.93,4.23481665]
[1735033322200,2.5815,193.95,193.94,4.23481665]
[1735033324911,15.97652705,194.04,193.9,2.5821]
[1735033325211,2.5814,193.95,193.91,15.55656499]
[1735033325512,2.5814,193.95,193.92,4.23025104]
[1735033325712,2.5814,193.95,193.93,4.23025104]
[1735033325908,2.5814,193.95,193.94,4.23025104]
[1735033327604,15.97652705,194.04,193.94,4.23025104]
[1735033327605,2.5813,193.97,193.94,4.23025104]
[1735033327911,15.97652705,194.04,193.95,4.23025104]
[1735033328103,15.97652705,194.04,193.96,4.23025104]
[1735033328309,2.5813,193.97,193.89,12.82322705]
[1735033328613,2.5813,193.97,193.92,2.5818]
[1735033328810,2.5813,193.97,193.93,15.58702151]
[1735033329010,2.5813,193.97,193.94,8.80697265]
[1735033329210,2.5813,193.97,193.95,4.23721327]
[1735033329412,2.5805,194.02,193.96,4.23721327]
[1735033329611,3.1533,194.04,193.97,4.23721327]
[1735033329907,3.1533,194.04,193.98,4.23721327]
[1735033330112,3.1533,194.04,193.95,2.5813]
[1735033330307,2.5808,194.0,193.96,4.24134162]
[1735033330503,2.5808,194.0,193.97,4.24134162]
[1735033330703,2.5808,194.0,193.98,4.24134162]
[1735033330904,2.5808,194.0,193.96,2.5813]
[1735033331306,2.5808,194.0,193.97,4.24519429]
[1735033331501,2.5808,194.0,193.98,4.24519429]
[1735033331702,3.1533,194.04,193.99,4.24519429]
[1735033331903,12.82322705,194.03,193.9,12.82322705]
[1735033332102,12.82322705,194.03,193.91,15.62246664]
[1735033332306,2.581,193.98,193.94,2.5815]
[1735033332507,12.82322705,194.03,193.95,4.24716551]
[1735033332820,2.5809,193.99,193.96,4.24716551]
[1735033333009,2.5809,193.99,193.94,2.5815]
[1735033333210,2.5809,193.99,193.95,8.83447626]
[1735033333514,2.5809,193.99,193.96,4.25039331]
[1735033333710,2.5809,193.99,193.97,4.25039331]
[1735033333911,2.5809,193.99,193.94,2.5815]
[1735033334112,2.5809,193.99,193.95,8.8475526]
[1735033334314,2.5809,193.99,193.96,8.85261503]
[1735033334513,2.5809,193.99,193.97,4.26174651]
[1735033334709,2.5809,193.99,193.98,4.26174651]
[1735033337328,2.5809,193.99,193.98,4.2645064]
[1735033337728,2.5813,193.96,193.91,15.40512705]
[1735033337927,2.5813,193.96,193.92,15.69306671]
[1735033338122,2.5813,193.96,193.93,15.69306671]
[1735033338327,2.5811,193.98,193.94,15.69306671]
[1735033338628,2.5811,193.98,193.95,15.69306671]
[1735033338827,2.5811,193.98,193.96,8.86943294]
[1735033339027,2.5811,193.98,193.97,8.86943294]
[1735033340425,2.5811,193.98,193.97,11.11293942]
[1735033340626,2.5811,193.98,193.97,15.72775933]
[1735033340829,2.5811,193.98,193.97,4.61481991]
[1735033341126,2.5811,193.98,193.97,8.89001864]
[1735033341736,2.5811,193.98,193.97,15.69312235]
[1735033341931,2.5811,193.98,193.97,8.89001864]
[1735033344936,2.5808,194.0,193.97,15.69466778]
[1735033345134,2.5808,194.0,193.98,8.89001864]
[1735033345336,2.5808,194.0,193.99,8.89001864]
[1735033346638,2.5808,194.0,193.99,8.90158032]
[1735033347431,2.5806,194.01,193.99,8.90158032]
[1735033347632,2.5806,194.01,194.0,8.90158032]
[1735033349339,2.5806,194.01,194.0,4.27519873]
[1735033349537,2.5806,194.01,194.0,4.62807045]
[1735033349837,2.5806,194.01,194.0,8.88327091]
[1735033350033,2.5806,194.01,194.0,8.88327859]
[1735033352441,2.19901264,194.06,194.0,8.88327859]
[1735033352643,2.19901264,194.06,194.01,8.88826575]
[1735033352940,2.19901264,194.06,194.02,8.88826575]
[1735033353138,2.19901264,194.06,194.03,8.88826575]
[1735033353337,10.37616302,194.06,193.99,8.17715038]
[1735033353538,2.5801,194.05,194.0,18.27399772]
[1735033353739,2.5801,194.05,194.01,15.69307122]
[1735033353940,2.5801,194.05,194.02,8.8843953]
[1735033354140,2.5801,194.05,194.03,8.8843953]
[1735033354341,2.5801,194.05,194.04,4.25556401]
[1735033355147,2.5801,194.05,194.0,2.5807]
[1735033355444,2.5801,194.05,194.01,8.87746795]
[1735033355644,2.5801,194.05,194.02,4.62521671]
[1735033355839,2.5801,194.05,194.03,8.87556595]
[1735033356035,2.5801,194.05,194.04,4.25034924]
[1735033356236,2.5801,194.05,193.86,55.82801412]
[1735033356237,8.17715038,194.05,193.86,55.82801412]
[1735033356440,8.17715038,194.02,193.87,15.67067837]
[1735033356642,8.17715038,194.02,193.93,8.17715038]
[1735033356936,8.17715038,194.02,193.95,8.17715038]
[1735033357142,8.17715038,194.02,193.96,15.67067837]
[1735033357442,8.17715038,194.02,193.97,8.87124755]
[1735033357643,8.17715038,194.0,193.98,4.24964426]
[1735033357937,3.1372,194.05,193.93,8.17715038]
[1735033358138,8.17715038,194.0,193.94,15.68117505]
[1735033358342,10.75795038,194.0,193.95,18.26247505]
[1735033358543,10.75795038,194.0,193.96,8.87757148]
[1735033358742,2.5808,194.0,193.97,4.25230771]
[1735033358945,8.17715038,194.02,193.98,11.45843334]
[1735033359146,8.17715038,194.02,193.98,2.581]
[1735033359348,8.17715038,194.02,193.99,4.25184757]
[1735033359548,8.17715038,194.0,193.83,4.5493]
[1735033359846,8.17715038,193.98,193.9,8.17715038]
[1735033360051,8.17715038,193.98,193.91,15.68439101]
[1735033360350,8.17715038,193.98,193.92,15.68439101]
[1735033360652,8.17715038,193.98,193.93,8.87940344]
[1735033360950,8.17715038,193.98,193.94,4.25311723]
[1735033361147,2.5809,194.0,193.95,4.25450121]
[1735033361346,10.75805038,194.0,193.94,2.5815]
[1735033361547,8.17715038,194.0,193.95,8.88144356]
[1735033361751,8.17715038,194.0,193.94,2.5815]
[1735033361950,8.17715038,194.0,193.95,8.88193442]
[1735033362146,2.5811,193.98,193.94,2.5815]
[1735033362548,2.5811,193.98,193.93,2.5817]
[1735033362748,2.5811,193.98,193.94,8.82703274]
[1735033363049,2.5811,193.98,193.93,2.5817]
[1735033363248,2.5811,193.98,193.94,8.82723587]
[1735033363449,2.5811,193.98,193.95,8.82723587]
[1735033363650,2.5811,193.98,193.93,2.5817]
[1735033363949,2.5811,193.98,193.94,11.40853128]
[1735033364149,2.5811,193.98,193.95,8.82703128]
[1735033364344,2.5811,193.98,193.94,2.5815]
[1735033364550,2.5811,193.98,193.95,8.82753839]
[1735033364852,2.5811,193.98,193.96,4.19913885]
[1735033365052,2.5811,193.98,193.94,2.5815]
[1735033365253,2.5811,193.98,193.95,8.82765416]
[1735033365444,2.5811,193.98,193.96,8.82765416]
[1735033365648,2.5811,193.98,193.94,2.5815]
[1735033365848,2.5811,193.98,193.95,8.82803205]
[1735033366052,2.5811,193.98,193.96,8.82803205]
[1735033366252,2.5811,193.98,193.97,8.82803205]
[1735033367551,3.1372,194.05,193.97,8.82803205]
[1735033367552,2.5804,194.03,193.97,8.82803205]
[1735033367753,8.17715038,194.01,193.96,2.5813]
[1735033368056,8.17715038,194.01,193.97,8.82878397]
[1735033368254,10.75785038,194.01,193.96,2.5813]
[1735033368452,8.17715038,194.01,193.97,4.19985512]